bitfinex-derivatives/quotes_BTCF0:USTF0_20241015
["timestamp","ask_amount","ask_price","bid_price","bid_amount"]
[1729033922092,0.11240877,66868.0,66867.0,0.091779]
[1729033922296,0.075777,66868.0,66867.0,0.091779]
[1729033922986,0.075777,66868.0,66867.0,0.11541719]
[1729033924699,0.001,66868.0,66867.0,0.11541719]
[1729033926890,0.075777,66868.0,66867.0,0.11541719]
[1729033928793,0.075777,66868.0,66867.0,0.04063819]
[1729033930999,0.185777,66868.0,66867.0,0.04063819]
[1729033932994,0.546577,66868.0,66867.0,0.04063819]
[1729033933400,0.185777,66868.0,66867.0,0.04063819]
[1729033933601,0.546577,66868.0,66867.0,0.04063819]
[1729033934605,0.58320979,66868.0,66867.0,0.04063819]
[1729033935291,1.146577,66868.0,66867.0,0.04063819]
[1729033935494,0.074787,66859.0,66844.0,0.074804]
[1729033935700,0.074795,66855.0,66854.0,0.07479]
[1729033935894,0.11142791,66855.0,66854.0,0.07479]
[1729033936096,0.11142791,66855.0,66854.0,0.06679]
[1729033937407,0.15735269,66855.0,66854.0,0.06679]
[1729033938305,0.17635269,66855.0,66854.0,0.06879]
[1729033940507,0.13042791,66855.0,66854.0,0.06879]
[1729033941405,0.17635428,66855.0,66854.0,0.06879]
[1729033942508,0.093795,66855.0,66854.0,0.06879]
[1729033943505,0.203795,66855.0,66854.0,0.002]
[1729033943709,0.60123633,66855.0,66854.0,0.002]
[1729033943911,0.074807,66843.0,66842.0,0.074806]
[1729033944316,0.074807,66843.0,66842.0,0.184806]
[1729033945205,0.076807,66843.0,66842.0,0.184806]
[1729033945407,0.076807,66843.0,66842.0,0.114]
[1729033945603,0.076807,66843.0,66842.0,0.004]
[1729033945908,0.076807,66843.0,66829.0,0.074821]
[1729033945909,0.074821,66830.0,66829.0,0.074819]
[1729033946106,0.074821,66830.0,66829.0,0.184819]
[1729033946406,0.074818,66833.0,66832.0,0.074816]
[1729033946611,0.074818,66833.0,66832.0,0.184816]
[1729033947599,0.074818,66833.0,66832.0,0.191816]
[1729033947600,0.075818,66833.0,66832.0,0.191816]
[1729033949014,0.076818,66833.0,66832.0,0.198816]
[1729033951613,0.076818,66833.0,66832.0,0.190816]
[1729033953810,0.002,66833.0,66832.0,0.190816]
[1729033966127,0.002,66833.0,66832.0,0.300816]
[1729033966626,0.002,66833.0,66832.0,0.292816]
[1729033966815,0.002,66833.0,66832.0,0.182816]
[1729033973326,0.03864921,66833.0,66832.0,0.182816]
[1729033976526,0.03864921,66833.0,66832.0,0.292816]
[1729033976823,0.3608,66837.0,66836.0,0.074813]
[1729033977128,0.3608,66837.0,66836.0,0.184813]
[1729033978134,0.074811,66838.0,66836.0,0.187813]
[1729033978327,0.074811,66838.0,66837.0,0.074812]
[1729033979219,0.0326,66840.0,66839.0,0.07481]
[1729033980023,0.107409,66840.0,66839.0,0.07481]
[1729033980629,0.108409,66840.0,66839.0,0.08081]
[1729033981730,0.108409,66840.0,66839.0,0.103788]
[1729033981926,0.108409,66840.0,66839.0,0.095788]
[1729033983628,1.157249,66840.0,66839.0,0.028978]
[1729033983937,1.157249,66840.0,66818.0,0.3236]
[1729033983938,0.074822,66828.0,66827.0,0.00224431]
[1729033984121,0.074822,66828.0,66819.0,0.00084]
[1729033984122,0.074831,66820.0,66819.0,0.00084]
[1729033984321,0.545631,66820.0,66819.0,0.00084]
[1729033984530,1.64054387,66820.0,66805.0,0.074847]
[1729033984725,0.074847,66806.0,66805.0,0.09802241]
[1729033985326,0.074847,66806.0,66805.0,0.20802241]
[1729033986122,0.075847,66806.0,66805.0,0.02317541]
[1729033986333,0.075847,66806.0,66796.0,0.3608]
[1729033986334,0.074857,66797.0,66796.0,0.3608]
[1729033986536,0.074857,66797.0,66796.0,0.02332588]
[1729033986830,0.11,66799.0,66792.0,0.11]
[1729033987137,0.074861,66793.0,66792.0,0.11]
[1729033987351,0.074865,66790.0,66782.0,0.36577]
[1729033987539,0.074865,66790.0,66774.0,0.3929]
[1729033987540,0.784865,66790.0,66778.0,0.11]
[1729033987834,1.294025,66790.0,66783.0,0.074873]
[1729033988331,1.294025,66790.0,66785.0,0.02372908]
[1729033989329,1.295025,66790.0,66785.0,0.02372908]
[1729033989640,0.074877,66780.0,66779.0,0.074876]
[1729033989824,0.07488,66776.0,66775.0,0.00076]
[1729033990023,0.60568,66776.0,66775.0,0.00076]
[1729033990330,0.60568,66776.0,66775.0,0.074882]
[1729033990833,0.43568,66776.0,66775.0,0.074882]
[1729033992021,0.074876,66780.0,66779.0,0.074877]
[1729033992221,0.075876,66780.0,66779.0,0.074877]
[1729033993640,0.074876,66780.0,66779.0,0.074877]
[1729033993932,0.074886,66771.0,66770.0,0.02327036]
[1729033994133,0.605686,66771.0,66770.0,1e-08]
[1729033994334,1.655006,66771.0,66770.0,1e-08]
[1729033996224,1.656006,66771.0,66770.0,1e-08]
[1729033996823,1.657006,66771.0,66770.0,0.01400001]
[1729033997225,0.437686,66771.0,66770.0,0.08888701]
[1729033997430,0.436686,66771.0,66770.0,0.074887]
[1729033997640,0.437686,66771.0,66770.0,0.080887]
[1729033997834,0.607686,66771.0,66770.0,0.080887]
[1729033998038,1.057006,66771.0,66770.0,0.080887]
[1729033998232,1.057006,66771.0,66770.0,0.006]
[1729033998635,0.607686,66771.0,66770.0,0.006]
[1729033999243,1.657006,66771.0,66770.0,0.006]
[1729034003952,1.057006,66771.0,66770.0,0.006]
[1729034004146,1.657006,66771.0,66770.0,0.006]
[1729034004348,1.057006,66771.0,66770.0,0.006]
[1729034004548,1.657006,66771.0,66770.0,0.006]
[1729034005648,0.607686,66771.0,66770.0,0.006]
[1729034007844,0.968486,66771.0,66770.0,0.006]
[1729034008054,0.246886,66771.0,66770.0,0.006]
[1729034008345,0.968486,66771.0,66770.0,0.006]
[1729034011450,0.437686,66771.0,66770.0,0.080887]
[1729034011644,0.3628,66771.0,66770.0,0.080887]
[1729034012757,0.3628,66771.0,66770.0,0.072887]
[1729034017256,0.002,66771.0,66770.0,0.072887]
[1729034019047,0.074884,66773.0,66772.0,0.074885]
[1729034019542,0.074884,66773.0,66772.0,0.13468792]
[1729034021051,0.074884,66773.0,66772.0,0.13768792]
[1729034021346,0.075884,66773.0,66772.0,0.13768792]
[1729034023755,0.075884,66773.0,66772.0,0.077885]
[1729034025246,0.436684,66773.0,66772.0,0.077885]
[1729034028150,0.436684,66773.0,66772.0,0.069885]
[1729034029467,0.3618,66773.0,66772.0,0.069885]
[1729034029765,0.001,66773.0,66772.0,0.11478077]
[1729034030059,0.075884,66773.0,66772.0,0.069885]
[1729034034156,0.075884,66773.0,66772.0,0.003]
[1729034034862,0.106984,66773.0,66772.0,0.003]
[1729034040675,0.074889,66768.0,66763.0,0.074895]
[1729034040968,0.244894,66764.0,66763.0,0.09896225]
[1729034041170,0.244894,66764.0,66763.0,0.02406725]
[1729034041368,0.074897,66761.0,66752.0,0.00497]
[1729034041570,0.435697,66761.0,66759.0,0.074899]
[1729034041962,0.435697,66761.0,66760.0,0.07714459]
[1729034043173,0.436697,66761.0,66760.0,0.10031977]
[1729034043370,0.437697,66761.0,66760.0,0.10131977]
[1729034043562,0.437697,66761.0,66760.0,0.09331977]
[1729034045663,0.3628,66761.0,66760.0,0.09331977]
[1729034046370,0.437697,66761.0,66760.0,0.09331977]
[1729034047862,0.076897,66761.0,66760.0,0.09331977]
[1729034048059,0.437697,66761.0,66760.0,0.09331977]
[1729034048475,0.3628,66761.0,66760.0,0.09331977]
[1729034048874,0.437697,66761.0,66760.0,0.09331977]
[1729034051563,0.076897,66761.0,66760.0,0.09331977]
[1729034051767,0.437697,66761.0,66760.0,0.09331977]
[1729034055175,0.076897,66761.0,66760.0,0.09331977]
[1729034055370,0.437697,66761.0,66760.0,0.09331977]
[1729034055864,0.076897,66761.0,66760.0,0.09331977]
[1729034057767,0.437697,66761.0,66760.0,0.09331977]
[1729034058774,0.076897,66761.0,66760.0,0.09331977]
[1729034058969,0.076897,66761.0,66760.0,0.08531977]
[1729034059373,0.437697,66761.0,66760.0,0.08531977]
[1729034061881,0.547697,66761.0,66760.0,0.08531977]
[1729034064467,0.186897,66761.0,66760.0,0.08531977]
[1729034064672,0.547697,66761.0,66760.0,0.08531977]
[1729034067976,0.547697,66761.0,66760.0,0.02417518]
[1729034070176,0.547697,66761.0,66760.0,0.09907318]
[1729034071280,0.547697,66761.0,66760.0,0.02417518]
[1729034071679,0.657697,66761.0,66760.0,0.001]
[1729034071984,0.607697,66761.0,66760.0,0.001]
[1729034072186,0.64439148,66761.0,66760.0,0.001]
[1729034073076,0.074907,66752.0,66751.0,0.074908]
[1729034073293,0.244907,66752.0,66751.0,0.09886743]
[1729034073480,0.244907,66752.0,66751.0,0.02395943]
[1729034073786,0.074911,66749.0,66748.0,0.074911]
[1729034073973,0.435711,66749.0,66748.0,0.074911]
[1729034074285,0.435711,66749.0,66748.0,0.066911]
[1729034074888,0.3608,66749.0,66748.0,0.066911]
[1729034076178,0.3668,66749.0,66748.0,0.066911]
[1729034076883,0.3618,66749.0,66748.0,0.066911]
[1729034077401,0.435711,66749.0,66748.0,0.066911]
[1729034077979,0.445711,66749.0,66748.0,0.066911]
[1729034078374,0.01,66749.0,66748.0,0.066911]
[1729034079187,0.07491,66750.0,66749.0,0.07491]
[1729034079982,0.3608,66755.0,66750.0,0.07491]
[1729034080187,0.3608,66755.0,66754.0,0.074905]
[1729034081989,0.3728,66755.0,66754.0,0.074905]
[1729034082589,0.3788,66755.0,66754.0,0.074905]
[1729034082788,0.450704,66755.0,66754.0,0.074905]
[1729034083188,0.447704,66755.0,66754.0,0.074905]
[1729034084994,0.447704,66755.0,66754.0,0.0980658]
[1729034089701,0.447704,66755.0,66754.0,0.0900658]
[1729034091998,0.086904,66755.0,66754.0,0.0900658]
[1729034092201,0.447704,66755.0,66754.0,0.0900658]
[1729034100404,0.3728,66755.0,66754.0,0.0900658]
[1729034100795,0.3728,66755.0,66754.0,0.2000658]
[1729034100992,0.012,66755.0,66754.0,0.2000658]
[1729034101196,0.3728,66755.0,66754.0,0.2000658]
[1729034101905,0.3608,66761.0,66760.0,0.074898]
[1729034102207,0.3608,66761.0,66760.0,0.184898]
[1729034102404,0.3608,66761.0,66760.0,0.074898]
[1729034102598,0.435697,66761.0,66760.0,0.074898]
[1729034103098,0.545697,66761.0,66760.0,0.074898]
[1729034103304,0.555697,66761.0,66760.0,0.074898]
[1729034103811,0.569697,66761.0,66760.0,0.075898]
[1729034104712,0.569697,66761.0,66760.0,0.001]
[1729034105400,0.569697,66761.0,66751.0,0.074908]
[1729034105401,1.58085416,66761.0,66751.0,0.074908]
[1729034105602,0.184907,66752.0,66751.0,0.074908]
[1729034105802,0.184907,66752.0,66751.0,0.066908]
[1729034105803,0.244907,66752.0,66751.0,0.066908]
[1729034106398,0.17,66755.0,66746.0,0.02545742]
[1729034106605,0.17,66755.0,66753.0,0.074905]
[1729034106811,0.074905,66754.0,66753.0,0.074905]
[1729034107202,0.136605,66754.0,66753.0,0.074905]
[1729034108306,0.17329977,66754.0,66753.0,0.074905]
[1729034108503,0.18429977,66754.0,66753.0,0.075905]
[1729034108899,0.149605,66754.0,66753.0,0.075905]
[1729034109601,0.147605,66754.0,66753.0,0.075905]
[1729034109800,0.152605,66754.0,66753.0,0.075905]
[1729034110008,0.0462,66754.0,66753.0,0.075905]
[1729034110202,0.016,66754.0,66753.0,0.075905]
[1729034110612,0.016,66754.0,66753.0,0.09947853]
[1729034113102,0.090905,66754.0,66753.0,0.09947853]
[1729034113704,0.090905,66754.0,66753.0,0.02457353]
[1729034117301,0.451705,66754.0,66753.0,0.02457353]
[1729034117516,0.451705,66754.0,66753.0,0.09947953]
[1729034118719,0.3768,66754.0,66753.0,0.09947953]
[1729034120709,0.3768,66754.0,66753.0,0.09147953]
[1729034125235,0.016,66754.0,66753.0,0.09147953]
[1729034129038,0.016,66754.0,66753.0,0.20147953]
[1729034130241,0.016,66754.0,66753.0,1.36087953]
[1729034130537,0.016,66754.0,66753.0,1.25087953]
[1729034130837,0.016,66754.0,66753.0,0.65087953]
[1729034131039,0.016,66754.0,66753.0,0.20147953]
[1729034131236,0.016,66754.0,66753.0,1.25087953]
[1729034131541,0.016,66754.0,66753.0,0.09147953]
[1729034133138,0.090905,66754.0,66753.0,0.09147953]
[1729034135844,0.016,66754.0,66753.0,0.09147953]
[1729034136146,0.016,66754.0,66753.0,0.08347953]
[1729034137052,0.016,66754.0,66753.0,1.13287953]
[1729034141048,0.016,66754.0,66753.0,0.08347953]
[1729034142451,0.074896,66763.0,66753.0,0.08347953]
[1729034142655,0.074896,66763.0,66762.0,0.074896]
[1729034142852,0.00224753,66766.0,66762.0,0.074896]
[1729034143156,0.07714153,66766.0,66765.0,0.074893]
[1729034143749,0.00224753,66766.0,66765.0,0.074893]
[1729034144452,0.01524753,66766.0,66765.0,0.074893]
[1729034144955,0.00224753,66766.0,66765.0,0.074893]
[1729034145150,0.01624753,66766.0,66765.0,0.436693]
[1729034145951,0.01624753,66766.0,66765.0,0.075893]
[1729034146549,0.01624753,66766.0,66765.0,0.076893]
[1729034147762,0.01624753,66766.0,66765.0,0.10410639]
[1729034151556,0.01624753,66766.0,66765.0,0.09610639]
[1729034155769,0.01624753,66766.0,66765.0,0.20610639]
[1729034159469,0.05293443,66766.0,66765.0,0.20610639]
[1729034159767,0.05293443,66766.0,66765.0,0.09610639]
[1729034160167,0.41373443,66766.0,66765.0,0.09610639]
[1729034160365,0.41373519,66766.0,66765.0,0.09610639]
[1729034160571,0.37704753,66766.0,66765.0,0.09610639]
[1729034160763,0.41373519,66766.0,66765.0,0.09610639]
[1729034161169,0.37704753,66766.0,66765.0,0.09610639]
[1729034161562,0.41373523,66766.0,66765.0,0.09610639]
[1729034161760,0.41373555,66766.0,66765.0,0.09610639]
[1729034162574,0.56193953,66766.0,66754.0,0.00076]
[1729034162866,0.184905,66755.0,66754.0,0.10231937]
[1729034163074,0.184905,66755.0,66754.0,0.074905]
[1729034163779,0.11,66755.0,66754.0,0.075905]
[1729034164673,0.12,66755.0,66754.0,0.076905]
[1729034164873,0.194904,66755.0,66754.0,0.10454068]
[1729034165356,0.194904,66755.0,66754.0,0.32454068]
[1729034165357,0.015,66755.0,66754.0,0.32454068]
[1729034165559,0.1342908,66764.0,66763.0,0.074895]
[1729034165774,0.03668972,66764.0,66763.0,0.184895]
[1729034165961,0.36304753,66766.0,66763.0,0.184895]
[1729034165962,0.00224753,66766.0,66763.0,0.11]
[1729034166160,0.3608,66765.0,66764.0,0.074894]
[1729034166367,0.39748662,66765.0,66764.0,0.074894]
[1729034166559,0.43417543,66765.0,66764.0,0.074894]
[1729034166761,0.03668881,66765.0,66764.0,0.074894]
[1729034167064,0.03668881,66765.0,66764.0,0.066894]
[1729034167369,0.00224753,66766.0,66765.0,0.074893]
[1729034167767,0.00224753,66766.0,66765.0,0.244893]
[1729034169563,0.01624753,66766.0,66765.0,0.245893]
[1729034169763,0.01624753,66766.0,66765.0,0.246893]
[1729034170366,0.01624753,66766.0,66765.0,0.076893]
[1729034172359,0.01624753,66766.0,66765.0,0.10435351]
[1729034179782,0.01624753,66766.0,66765.0,0.27435351]
[1729034182471,0.01624753,66766.0,66765.0,0.26635351]
[1729034186976,0.45193953,66766.0,66765.0,0.09635351]
[1729034187975,0.45193953,66766.0,66743.0,0.17]
[1729034187976,0.074903,66756.0,66754.0,0.00076]
[1729034188278,0.244904,66755.0,66754.0,0.074905]
[1729034188677,0.28159654,66755.0,66754.0,0.074905]
[1729034189381,0.244904,66755.0,66754.0,0.074905]
[1729034189779,0.074904,66755.0,66754.0,0.074905]
[1729034190378,0.074904,66755.0,66754.0,0.10166587]
[1729034191178,0.074904,66755.0,66754.0,0.10266587]
[1729034191580,0.079904,66755.0,66754.0,0.10266587]
[1729034191782,0.005,66755.0,66754.0,0.10266587]
[1729034192079,0.082904,66755.0,66754.0,0.10266587]
[1729034194992,0.008,66755.0,66754.0,0.10266587]
[1729034195880,0.008,66755.0,66754.0,0.21266587]
[1729034196485,0.3688,66755.0,66754.0,0.21266587]
[1729034197780,0.3688,66755.0,66754.0,0.20466587]
[1729034198187,0.3688,66755.0,66754.0,0.31466587]
[1729034198188,0.008,66755.0,66754.0,0.31466587]
[1729034199286,0.008,66755.0,66754.0,0.20466587]
[1729034199787,0.008,66755.0,66754.0,0.26466587]
[1729034205887,0.3608,66764.0,66763.0,0.074895]
[1729034206088,0.3608,66764.0,66763.0,0.244895]
[1729034207093,0.3628,66764.0,66763.0,0.245895]
[1729034207295,0.3768,66764.0,66763.0,0.246895]
[1729034208398,0.016,66764.0,66763.0,0.246895]
[1729034211803,0.016,66764.0,66763.0,0.27367421]
[1729034212012,0.016,66764.0,66763.0,0.02877921]
[1729034212303,0.090894,66764.0,66763.0,0.002]
[1729034213094,0.074895,66763.0,66762.0,0.02102054]
[1729034213300,0.074896,66762.0,66761.0,0.074897]
[1729034213496,0.016,66764.0,66763.0,0.074895]
[1729034213497,0.090894,66764.0,66763.0,0.074895]
[1729034214402,0.074894,66764.0,66763.0,0.074895]
[1729034215209,0.087894,66764.0,66763.0,0.075895]
[1729034216907,0.088894,66764.0,66763.0,0.076895]
[1729034220392,0.014,66764.0,66763.0,0.246895]
[1729034220994,0.014,66764.0,66763.0,0.076895]
[1729034222307,0.088894,66764.0,66763.0,0.076895]
[1729034222504,0.150194,66764.0,66763.0,0.076895]
[1729034224404,0.0753,66764.0,66763.0,0.076895]
[1729034227609,0.014,66764.0,66763.0,0.076895]
[1729034228402,0.014,66764.0,66763.0,0.068895]
[1729034236610,0.00224716,66769.0,66763.0,1.52216]
[1729034236812,0.3608,66772.0,66771.0,0.074886]
[1729034237011,0.39748392,66772.0,66771.0,0.074886]
[1729034238918,0.39748392,66772.0,66771.0,0.076886]
[1729034239709,0.39748392,66772.0,66771.0,0.087886]
[1729034241613,0.3608,66772.0,66771.0,0.087886]
[1729034243812,0.3608,66772.0,66771.0,0.079886]
[1729034244507,0.3608,66772.0,66771.0,0.10727921]
[1729034247922,0.074883,66774.0,66773.0,0.074884]
[1729034248215,0.074883,66774.0,66773.0,0.184884]
[1729034249019,0.074883,66774.0,66773.0,0.193884]
[1729034249719,0.435683,66774.0,66773.0,0.193884]
[1729034250122,0.435683,66774.0,66773.0,0.194884]
[1729034250912,0.074883,66774.0,66773.0,0.194884]
[1729034251120,0.435683,66774.0,66773.0,0.194884]
[1729034252109,0.074883,66774.0,66773.0,0.194884]
[1729034252309,0.435683,66774.0,66773.0,0.194884]
[1729034253420,0.074883,66774.0,66773.0,0.194884]
[1729034253623,0.435683,66774.0,66773.0,0.194884]
[1729034254216,0.3608,66774.0,66773.0,0.194884]
[1729034255228,0.435683,66774.0,66773.0,0.194884]
[1729034255919,0.4219,66782.0,66773.0,0.12]
[1729034256216,0.435682,66775.0,66774.0,0.074878]
[1729034256818,0.074882,66775.0,66774.0,0.074878]
[1729034258723,0.074882,66775.0,66774.0,0.082878]
[1729034259126,0.074882,66775.0,66774.0,0.074878]
[1729034261926,0.11156603,66775.0,66774.0,0.074878]
[1729034262123,0.11156623,66775.0,66774.0,0.074878]
[1729034262321,0.074882,66775.0,66774.0,0.074878]
[1729034262627,0.11156625,66775.0,66774.0,0.074878]
[1729034262835,0.074882,66775.0,66774.0,0.074878]
[1729034263016,0.11156564,66775.0,66774.0,0.074878]
[1729034266525,0.074882,66775.0,66774.0,0.074878]
[1729034266723,0.472366,66775.0,66774.0,0.074878]
[1729034272923,0.51834528,66775.0,66774.0,0.074878]
[1729034274429,0.51834528,66775.0,66774.0,0.066878]
[1729034274925,0.472366,66775.0,66774.0,0.066878]
[1729034276318,0.435682,66775.0,66774.0,0.066878]
[1729034276624,0.47236496,66775.0,66774.0,0.066878]
[1729034276825,0.11156496,66775.0,66774.0,0.066878]
[1729034280725,0.074882,66775.0,66774.0,0.066878]
[1729034281228,0.11156593,66775.0,66774.0,0.066878]
[1729034281435,0.074882,66775.0,66774.0,0.066878]
[1729034281834,0.11156611,66775.0,66774.0,0.066878]
[1729034282036,0.1115661,66775.0,66774.0,0.066878]
[1729034282638,0.074882,66775.0,66774.0,0.066878]
[1729034282836,0.11156608,66775.0,66774.0,0.066878]
[1729034283131,0.074882,66775.0,66774.0,0.066878]
[1729034283925,0.11156582,66775.0,66774.0,0.066878]
[1729034284934,0.074882,66775.0,66774.0,0.066878]
[1729034285141,0.435682,66775.0,66774.0,0.066878]
[1729034285324,0.47236617,66775.0,66774.0,0.066878]
[1729034287739,0.11156617,66775.0,66774.0,0.066878]
[1729034288134,0.47236617,66775.0,66774.0,0.066878]
[1729034288641,0.11156617,66775.0,66774.0,0.066878]
[1729034289135,0.47236617,66775.0,66774.0,0.066878]
[1729034289537,0.47236688,66775.0,66774.0,0.066878]
[1729034289738,0.47236688,66775.0,66774.0,0.058878]
[1729034291341,0.11156688,66775.0,66774.0,0.058878]
[1729034291540,0.47236688,66775.0,66774.0,0.058878]
[1729034294443,0.47236585,66775.0,66774.0,0.058878]
[1729034295935,0.435682,66775.0,66774.0,0.058878]
[1729034299436,0.4723657,66775.0,66774.0,0.058878]
[1729034303540,0.1115657,66775.0,66774.0,0.058878]
[1729034303938,0.4723657,66775.0,66774.0,0.058878]
[1729034305045,0.4723657,66775.0,66774.0,0.050878]
[1729034305351,0.435682,66775.0,66774.0,0.050878]
[1729034306952,0.074882,66775.0,66774.0,0.050878]
[1729034307139,0.435682,66775.0,66774.0,0.050878]
[1729034307755,0.074882,66775.0,66774.0,0.050878]
[1729034308052,0.435682,66775.0,66774.0,0.050878]
[1729034311048,0.47236656,66775.0,66774.0,0.050878]
[1729034313253,0.11156656,66775.0,66774.0,0.050878]
[1729034313453,0.47236656,66775.0,66774.0,0.050878]
[1729034315252,0.11156656,66775.0,66774.0,0.050878]
[1729034315557,0.47236656,66775.0,66774.0,0.050878]
[1729034316054,0.11156656,66775.0,66774.0,0.050878]
[1729034316358,0.47236656,66775.0,66774.0,0.050878]
[1729034316657,0.11156656,66775.0,66774.0,0.050878]
[1729034316859,0.47236656,66775.0,66774.0,0.050878]
[1729034317362,0.47236656,66775.0,66774.0,0.160878]
[1729034317745,0.47236656,66775.0,66774.0,0.008]
[1729034317946,1.04346564,66775.0,66760.0,0.00224669]
[1729034318257,0.074897,66761.0,66760.0,0.00224669]
[1729034318454,0.11158156,66761.0,66760.0,0.00224669]
[1729034318659,0.17468156,66761.0,66760.0,0.00224669]
[1729034318955,0.17468156,66761.0,66760.0,0.07714469]
[1729034319362,0.137997,66761.0,66760.0,0.07714469]
[1729034319752,0.137997,66761.0,66760.0,0.10401777]
[1729034319960,0.137997,66761.0,66760.0,0.10501777]
[1729034320163,0.139997,66761.0,66760.0,0.10601777]
[1729034320363,0.139997,66761.0,66760.0,0.09801777]
[1729034321657,0.002,66761.0,66760.0,0.09801777]
[1729034323067,0.002,66761.0,66760.0,0.20801777]
[1729034323263,0.002,66761.0,66760.0,0.09801777]
[1729034325664,0.002,66761.0,66760.0,0.20801777]
[1729034329458,0.002,66761.0,66760.0,0.09801777]
[1729034329662,0.002,66761.0,66760.0,0.20801777]
[1729034331759,0.002,66761.0,66760.0,0.09801777]
[1729034332766,0.002,66761.0,66760.0,0.20801777]
[1729034332971,0.002,66761.0,66760.0,0.09801777]
[1729034335872,0.002,66761.0,66760.0,0.09001777]
[1729034348069,0.3608,66768.0,66760.0,1.24937777]
[1729034348265,0.3608,66768.0,66767.0,0.184891]
[1729034349280,0.3698,66768.0,66767.0,0.185891]
[1729034349876,0.009,66768.0,66767.0,0.185891]
[1729034350275,0.009,66768.0,66767.0,0.075891]
[1729034350470,0.083889,66768.0,66767.0,0.075891]
[1729034350683,0.083889,66768.0,66767.0,0.001]
[1729034351075,0.083889,66768.0,66767.0,0.075891]
[1729034351283,0.083889,66768.0,66767.0,0.067891]
[1729034351474,0.083889,66768.0,66767.0,0.068891]
[1729034351879,0.083889,66768.0,66767.0,0.09578699]
[1729034355085,0.009,66768.0,66767.0,0.09578699]
[1729034361491,0.3698,66768.0,66767.0,0.09578699]
[1729034361683,0.009,66768.0,66767.0,0.09578699]
[1729034366498,0.009,66768.0,66767.0,0.08778699]
[1729034377408,0.00843019,66768.0,66767.0,0.08778699]
[1729034382009,0.00843019,66768.0,66767.0,0.07978699]
[1729034382605,0.04511545,66768.0,66767.0,0.07978699]
[1729034385709,0.04511544,66768.0,66767.0,0.07978699]
[1729034386211,0.00843019,66768.0,66767.0,0.07978699]
[1729034395714,0.00843019,66768.0,66767.0,0.18978699]
[1729034397015,0.00843019,66768.0,66767.0,0.07978699]
[1729034397312,0.08331919,66768.0,66767.0,0.07178699]
[1729034400717,0.08331919,66768.0,66767.0,0.18178699]
[1729034404117,0.12000508,66768.0,66767.0,0.02789599]
[1729034404423,0.074902,66757.0,66753.0,0.074906]
[1729034404723,0.074902,66757.0,66751.0,0.37399576]
[1729034404724,0.4708,66759.0,66750.0,0.074909]
[1729034404922,0.4708,66759.0,66741.0,0.03787]
[1729034404923,0.074913,66747.0,66744.0,0.074916]
[1729034405108,0.074913,66747.0,66738.0,0.074922]
[1729034405109,0.22161157,66747.0,66738.0,0.074922]
[1729034405316,1.31709288,66747.0,66746.0,0.0296653]
[1729034405613,1.27109157,66747.0,66746.0,0.0296653]
[1729034405916,1.18998,66747.0,66736.0,0.3608]
[1729034406122,0.074924,66737.0,66736.0,0.3608]
[1729034406415,0.074924,66737.0,66736.0,0.46210171]
[1729034407114,0.074924,66737.0,66736.0,0.46310171]
[1729034407310,0.074924,66737.0,66736.0,0.10230171]
[1729034407715,0.0319,66738.0,66737.0,0.074924]
[1729034407907,0.43572,66741.0,66737.0,0.184924]
[1729034408109,0.43572,66741.0,66740.0,0.184921]
[1729034408417,0.3608,66741.0,66740.0,0.184921]
[1729034408715,0.0311,66746.0,66745.0,0.074915]
[1729034408908,0.0311,66746.0,66745.0,0.184915]
[1729034410518,0.0431,66746.0,66745.0,0.185915]
[1729034410718,0.0481,66746.0,66745.0,0.185915]
[1729034411112,0.0361,66746.0,66745.0,0.184915]
[1729034411326,0.0471,66746.0,66745.0,0.184915]
[1729034412719,0.0471,66746.0,66745.0,0.176915]
[1729034415219,0.122014,66746.0,66745.0,0.176915]
[1729034415419,0.122014,66746.0,66745.0,0.20443311]
[1729034415727,0.482814,66746.0,66745.0,0.20443311]
[1729034416319,0.592814,66746.0,66745.0,0.09443311]
[1729034416709,0.482814,66746.0,66745.0,0.09443311]
[1729034417015,0.4079,66746.0,66745.0,0.20443311]
[1729034418826,0.482814,66746.0,66745.0,0.20443311]
[1729034420923,0.482814,66746.0,66745.0,0.09443311]
[1729034421820,0.592814,66746.0,66745.0,0.02751811]
[1729034422128,0.074926,66736.0,66735.0,0.074923]
[1729034423625,0.075926,66736.0,66735.0,0.080923]
[1729034424422,0.075926,66736.0,66735.0,0.085923]
[1729034425116,0.075926,66736.0,66735.0,0.011]
[1729034428024,0.075926,66736.0,66735.0,0.003]
[1729034428418,0.436726,66736.0,66735.0,0.003]
[1729034428615,0.075926,66736.0,66735.0,0.003]
[1729034428818,0.436726,66736.0,66735.0,0.003]
[1729034432021,1.486246,66736.0,66735.0,0.003]
[1729034434723,1.517646,66736.0,66735.0,0.003]
[1729034435635,0.468126,66736.0,66735.0,0.003]
[1729034435835,0.578126,66736.0,66735.0,0.077926]
[1729034437439,0.578126,66736.0,66735.0,0.003]
[1729034437833,0.468126,66736.0,66735.0,0.003]
[1729034443443,0.468126,66736.0,66733.0,0.069928]
[1729034443643,0.074928,66734.0,66733.0,0.069928]
[1729034445632,0.075928,66734.0,66733.0,0.076928]
[1729034446049,0.076928,66734.0,66733.0,0.077928]
[1729034451633,0.076928,66734.0,66733.0,0.109028]
[1729034451846,0.002,66734.0,66733.0,0.109028]
[1729034458970,0.002,66734.0,66733.0,0.101028]
[1729034459973,0.002,66734.0,66733.0,0.211028]
[1729034462281,0.074916,66745.0,66733.0,0.211028]
[1729034462282,0.074918,66743.0,66742.0,0.074917]
[1729034462479,0.074918,66743.0,66742.0,0.184917]
[1729034462866,0.3608,66744.0,66743.0,0.074917]
[1729034463371,0.435716,66744.0,66743.0,0.105917]
[1729034463945,0.3608,66744.0,66743.0,0.105917]